[Event "EUCC Open Blitz 2024"]
[Site "Miskolc"]
[Date "2024.07.13"]
[Round "2.10"]
[White "Pavic, Filip"]
[Black "Broersma, Sven"]
[Result "1-0"]
[ECO "B51"]
[WhiteElo "2248"]
[BlackElo "1945"]
[PlyCount "51"]
[EventDate "2024.07.08"]
[EventType "team-tourn"]
[EventCountry "HUN"]
[TimeControl "1500+10"]

1. e4 {[%emt 0:22:17]} c5 {[%emt 0:22:16]} 2. Nf3 {[%emt 0:00:10]} d6 {[%emt 0:00:09]} 3. Bb5+ {[%emt 0:00:09]} Nc6 {[%emt 0:00:09]} 4. O-O {[%emt 0:00:10]} Bd7 {[%emt 0:00:10]} 5. c3 {[%emt 0:00:09]} a6 {[%emt 0:00:13]} 6. Ba4 {[%emt 0:00:11]} Nf6 {[%emt 0:00:10]} 7. Re1 {[%emt 0:00:09]} b5 {[%emt 0:00:16]} 8. Bc2 {[%emt 0:00:09]} Bg4 {[%emt 0:00:13]} 9. h3 {[%emt 0:00:12]} Bxf3 {[%emt 0:00:12]} 10. Qxf3 {[%emt 0:00:09]} g6 {[%emt 0:00:09]} 11. d3 {[%emt 0:00:14]} Bg7 {[%emt 0:00:10]} 12. Bg5 {[%emt 0:00:10]} O-O {[%emt 0:00:10]} 13. Nd2 {[%emt 0:00:13]} a5 {[%emt 0:00:24]} 14. a4 {[%emt 0:00:18]} b4 {[%emt 0:00:10]} 15. Be3 {[%emt 0:00:31]} Qc7 {[%emt 0:00:20]} 16. Bb3 {[%emt 0:00:15]} Rab8 {[%emt 0:00:14]} 17. d4 {[%emt 0:00:23]} bxc3 {[%emt 0:00:20]} 18. bxc3 {[%emt 0:00:10]} cxd4 {[%emt 0:00:13]} 19. cxd4 {[%emt 0:00:09]} Nb4 {[%emt 0:00:25]} 20. Rac1 {[%emt 0:00:17]} Qd7 {[%emt 0:00:11]} 21. Qe2 {[%emt 0:00:14]} Rfc8 {[%emt 0:00:15]} 22. Bg5 {[%emt 0:00:31]} Qa7 {[%emt 0:00:34]} 23. e5 {[%emt 0:00:24]} Nd7 {[%emt 0:00:30]} 24. e6 {[%emt 0:00:21]} fxe6 {[%emt 0:00:26]} 25. Qxe6+ {[%emt 0:00:23]} Kh8 {[%emt 0:00:09]} 26. Qxe7 {[%emt 0:00:22]} 1-0

[Event "EUCC Open Blitz 2024"]
[Site "Miskolc"]
[Date "2024.07.13"]
[Round "2.11"]
[White "Veiga, Jose Francisco R P N"]
[Black "Pribelszky, Bence"]
[Result "1-0"]
[ECO "B40"]
[WhiteElo "2385"]
[BlackElo "2363"]
[PlyCount "49"]
[EventDate "2024.07.08"]
[EventType "team-tourn"]
[EventCountry "HUN"]
[TimeControl "1500+10"]

1. e4 {[%emt 0:22:18]} c5 {[%emt 0:22:17]} 2. Nf3 {[%emt 0:00:09]} e6 {[%emt 0:00:09]} 3. c3 {[%emt 0:00:10]} d5 {[%emt 0:00:13]} 4. exd5 {[%emt 0:00:12]} exd5 {[%emt 0:00:10]} 5. Bb5+ {[%emt 0:00:10]} Bd7 {[%emt 0:00:11]} 6. Qe2+ {[%emt 0:00:15]} Be7 {[%emt 0:00:10]} 7. O-O {[%emt 0:00:11]} c4 {[%emt 0:01:09]} 8. Na3 {[%emt 0:00:54]} a6 {[%emt 0:00:28]} 9. Bxd7+ {[%emt 0:00:11]} Qxd7 {[%emt 0:00:09]} 10. Nc2 {[%emt 0:00:40]} Nf6 {[%emt 0:00:13]} 11. Re1 {[%emt 0:00:13]} Ne4 {[%emt 0:00:44]} 12. Ne5 {[%emt 0:00:35]} Qc7 {[%emt 0:01:00]} 13. Nxc4 {[%emt 0:00:12]} O-O {[%emt 0:00:23]} 14. N4e3 {[%emt 0:00:09]} Nf6 {[%emt 0:00:09]} 15. Nf5 {[%emt 0:00:15]} Bc5 {[%emt 0:00:10]} 16. d4 {[%emt 0:00:13]} Bb6 {[%emt 0:00:11]} 17. Bg5 {[%emt 0:00:20]} Nbd7 {[%emt 0:00:11]} 18. Nb4 {[%emt 0:00:25]} Rae8 {[%emt 0:00:10]} 19. Qf3 {[%emt 0:00:10]} Ba5 {[%emt 0:00:10]} 20. Nxd5 {[%emt 0:00:16]} Nxd5 {[%emt 0:00:09]} 21. Qxd5 {[%emt 0:00:10]} Rxe1+ {[%emt 0:00:11]} 22. Rxe1 {[%emt 0:00:09]} Bb6 {[%emt 0:00:09]} 23. Be7 {[%emt 0:00:18]} Re8 {[%emt 0:00:11]} 24. Nd6 {[%emt 0:00:10]} Rxe7 {[%emt 0:00:00]} 25. Rxe7 1-0

[Event "EUCC Open Blitz 2024"]
[Site "Miskolc"]
[Date "2024.07.13"]
[Round "2.13"]
[White "Gatineau, Yovann"]
[Black "Budak, Rewi"]
[Result "1-0"]
[ECO "D33"]
[WhiteElo "2414"]
[BlackElo "2100"]
[PlyCount "59"]
[EventDate "2024.07.08"]
[EventType "team-tourn"]
[EventCountry "HUN"]
[TimeControl "1500+10"]

1. Nf3 {[%emt 0:22:17]} c5 {[%emt 0:22:17]} 2. c4 {[%emt 0:00:09]} Nf6 {[%emt 0:00:10]} 3. Nc3 {[%emt 0:00:09]} e6 {[%emt 0:00:10]} 4. g3 {[%emt 0:00:11]} d5 {[%emt 0:00:11]} 5. cxd5 {[%emt 0:00:10]} exd5 {[%emt 0:00:09]} 6. d4 {[%emt 0:00:09]} Nc6 {[%emt 0:00:14]} 7. Bg2 {[%emt 0:00:09]} c4 {[%emt 0:00:51]} 8. O-O {[%emt 0:00:13]} h6 {[%emt 0:00:12]} 9. Ne5 {[%emt 0:00:37]} Be6 {[%emt 0:00:31]} 10. e4 {[%emt 0:00:25]} dxe4 {[%emt 0:00:51]} 11. Nxc6 {[%emt 0:00:16]} bxc6 {[%emt 0:00:09]} 12. Nxe4 {[%emt 0:00:14]} Nxe4 {[%emt 0:00:09]} 13. Bxe4 {[%emt 0:00:10]} Bd5 {[%emt 0:00:09]} 14. Re1 {[%emt 0:00:39]} Be7 {[%emt 0:00:08]} 15. Qe2 {[%emt 0:00:35]} Rb8 {[%emt 0:00:57]} 16. Qg4 {[%emt 0:00:58]} Kf8 {[%emt 0:00:09]} 17. b3 {[%emt 0:00:17]} h5 {[%emt 0:00:27]} 18. Qf3 {[%emt 0:00:08]} Kg8 {[%emt 0:00:11]} 19. bxc4 {[%emt 0:00:11]} Bxc4 {[%emt 0:00:10]} 20. Bf4 {[%emt 0:00:11]} Rc8 {[%emt 0:00:14]} 21. Bxc6 {[%emt 0:00:11]} Bf6 {[%emt 0:00:09]} 22. Re8+ {[%emt 0:00:12]} Qxe8 {[%emt 0:00:09]} 23. Bxe8 {[%emt 0:00:09]} Rxe8 {[%emt 0:00:09]} 24. Rc1 {[%emt 0:00:17]} Be6 {[%emt 0:00:09]} 25. Be5 {[%emt 0:00:10]} Bg5 {[%emt 0:00:15]} 26. Rc7 {[%emt 0:00:11]} Kh7 {[%emt 0:00:12]} 27. d5 {[%emt 0:00:10]} Bg4 {[%emt 0:00:10]} 28. Qxf7 {[%emt 0:00:11]} Rhg8 {[%emt 0:00:10]} 29. Bxg7 {[%emt 0:00:16]} Re1+ {[%emt 0:00:14]} 30. Kg2 {[%emt 0:00:09]} 1-0

[Event "EUCC Open Blitz 2024"]
[Site "Miskolc"]
[Date "2024.07.13"]
[Round "2.14"]
[White "Delpech, Anthony"]
[Black "Houhou, Alexandre"]
[Result "1/2-1/2"]
[ECO "C02"]
[WhiteElo "1877"]
[BlackElo "2148"]
[PlyCount "47"]
[EventDate "2024.07.08"]
[EventType "team-tourn"]
[EventCountry "HUN"]
[TimeControl "1500+10"]

1. e4 e6 2. d4 {[%emt 0:22:27]} d5 {[%emt 0:22:24]} 3. e5 {[%emt 0:00:08]} c5 {[%emt 0:00:09]} 4. c3 {[%emt 0:00:09]} Nc6 5. Nf3 Qb6 {[%emt 0:00:17]} 6. a3 {[%emt 0:00:17]} c4 {[%emt 0:00:09]} 7. Nbd2 {[%emt 0:00:09]} Na5 {[%emt 0:00:09]} 8. Rb1 {[%emt 0:00:08]} Bd7 {[%emt 0:00:12]} 9. b4 {[%emt 0:00:09]} cxb3 {[%emt 0:00:09]} 10. Nxb3 {[%emt 0:00:09]} Ba4 {[%emt 0:00:12]} 11. Nxa5 {[%emt 0:00:09]} Qxa5 {[%emt 0:00:08]} 12. Qd3 {[%emt 0:00:20]} a6 {[%emt 0:00:55]} 13. Rxb7 {[%emt 0:00:47]} Rc8 {[%emt 0:00:48]} 14. Bd2 {[%emt 0:00:35]} Bb5 {[%emt 0:00:12]} 15. Rxb5 {[%emt 0:00:09]} axb5 {[%emt 0:00:09]} 16. Qxb5+ {[%emt 0:00:10]} Qxb5 {[%emt 0:00:09]} 17. Bxb5+ {[%emt 0:00:09]} Kd8 {[%emt 0:00:09]} 18. a4 {[%emt 0:00:23]} Ba3 {[%emt 0:00:28]} 19. Ng5 {[%emt 0:00:34]} Nh6 {[%emt 0:00:24]} 20. O-O {[%emt 0:00:09]} Bb2 {[%emt 0:00:20]} 21. c4 dxc4 {[%emt 0:00:11]} 22. Ba5+ {[%emt 0:01:14]} Ke7 {[%emt 0:00:19]} 23. Bb4+ {[%emt 0:00:09]} Kd8 {[%emt 0:00:10]} 24. Ba5+ {[%emt 0:00:08]} 1/2-1/2

[Event "EUCC Open Blitz 2024"]
[Site "Miskolc"]
[Date "2024.07.13"]
[Round "2.15"]
[White "Medve, Mark"]
[Black "Farkas, Richard"]
[Result "1/2-1/2"]
[ECO "E94"]
[WhiteElo "2123"]
[BlackElo "2233"]
[PlyCount "69"]
[EventDate "2024.07.08"]
[EventType "team-tourn"]
[EventCountry "HUN"]
[TimeControl "1500+10"]

1. d4 {[%emt 0:22:16]} Nf6 {[%emt 0:22:22]} 2. c4 {[%emt 0:00:09]} d6 {[%emt 0:00:08]} 3. Nf3 {[%emt 0:00:10]} Nbd7 {[%emt 0:00:09]} 4. Nc3 {[%emt 0:00:09]} e5 {[%emt 0:00:09]} 5. e4 {[%emt 0:00:08]} g6 {[%emt 0:00:11]} 6. Be2 {[%emt 0:00:11]} Bg7 {[%emt 0:00:09]} 7. O-O {[%emt 0:00:09]} O-O {[%emt 0:00:10]} 8. Qc2 {[%emt 0:00:10]} exd4 {[%emt 0:00:12]} 9. Nxd4 {[%emt 0:00:10]} Re8 {[%emt 0:00:22]} 10. Be3 {[%emt 0:00:15]} c6 {[%emt 0:00:14]} 11. Rad1 {[%emt 0:00:15]} Qc7 {[%emt 0:00:18]} 12. Rfe1 {[%emt 0:00:19]} a6 {[%emt 0:00:14]} 13. a3 {[%emt 0:00:29]} b5 {[%emt 0:00:49]} 14. cxb5 {[%emt 0:00:13]} cxb5 {[%emt 0:00:11]} 15. Rc1 {[%emt 0:00:54]} Bb7 {[%emt 0:00:18]} 16. f3 {[%emt 0:00:34]} d5 {[%emt 0:00:29]} 17. Nxd5 {[%emt 0:00:19]} Qxc2 {[%emt 0:00:24]} 18. Nxf6+ {[%emt 0:00:09]} Nxf6 {[%emt 0:00:10]} 19. Rxc2 {[%emt 0:00:09]} Nd5 {[%emt 0:00:11]} 20. Bf2 {[%emt 0:00:11]} Nf4 {[%emt 0:00:14]} 21. Bf1 {[%emt 0:00:08]} Rad8 {[%emt 0:00:10]} 22. Rd1 {[%emt 0:00:17]} Rd7 {[%emt 0:00:14]} 23. Rcd2 {[%emt 0:00:12]} Rc7 {[%emt 0:00:12]} 24. g3 {[%emt 0:00:12]} Ne6 {[%emt 0:00:15]} 25. Nxe6 {[%emt 0:00:09]} fxe6 {[%emt 0:00:10]} 26. Rd8 {[%emt 0:00:15]} Kf7 {[%emt 0:00:15]} 27. Rxe8 {[%emt 0:00:12]} Kxe8 {[%emt 0:00:09]} 28. Rd2 {[%emt 0:00:15]} Rc1 {[%emt 0:00:14]} 29. Kg2 {[%emt 0:00:09]} Rb1 {[%emt 0:00:15]} 30. b4 {[%emt 0:00:21]} Ra1 {[%emt 0:00:15]} 31. Rc2 {[%emt 0:00:10]} Kd7 {[%emt 0:00:13]} 32. Rd2+ {[%emt 0:00:16]} Kc7 {[%emt 0:00:18]} 33. Rc2+ {[%emt 0:00:09]} Kd7 {[%emt 0:00:10]} 34. Rd2+ {[%emt 0:00:14]} Kc7 {[%emt 0:00:10]} 35. Rc2+ {[%emt 0:00:08]} 1/2-1/2

[Event "EUCC Open Blitz 2024"]
[Site "Miskolc"]
[Date "2024.07.13"]
[Round "2.16"]
[White "Bartok, David Dominik"]
[Black "Kovacs, Gabor Etele"]
[Result "0-1"]
[ECO "C69"]
[WhiteElo "1958"]
[BlackElo "2109"]
[PlyCount "56"]
[EventDate "2024.07.08"]
[EventType "team-tourn"]
[EventCountry "HUN"]
[TimeControl "1500+10"]

1. e4 {[%emt 0:22:19]} e5 {[%emt 0:22:17]} 2. Nf3 {[%emt 0:00:10]} Nc6 {[%emt 0:00:08]} 3. Bb5 {[%emt 0:00:09]} a6 {[%emt 0:00:09]} 4. Bxc6 {[%emt 0:00:09]} dxc6 {[%emt 0:00:09]} 5. O-O {[%emt 0:00:12]} Bg4 {[%emt 0:00:11]} 6. h3 {[%emt 0:00:10]} h5 {[%emt 0:00:09]} 7. d3 {[%emt 0:00:17]} Qf6 {[%emt 0:00:10]} 8. Nbd2 {[%emt 0:00:09]} g5 {[%emt 0:00:09]} 9. Re1 {[%emt 0:00:21]} Be6 {[%emt 0:00:20]} 10. Nf1 {[%emt 0:00:19]} g4 {[%emt 0:00:16]} 11. hxg4 {[%emt 0:00:10]} hxg4 {[%emt 0:00:09]} 12. N3h2 {[%emt 0:00:12]} Qh4 {[%emt 0:00:17]} 13. d4 {[%emt 0:00:40]} O-O-O {[%emt 0:00:15]} 14. c3 {[%emt 0:00:10]} exd4 {[%emt 0:00:55]} 15. cxd4 {[%emt 0:00:12]} Bd6 {[%emt 0:00:32]} 16. e5 {[%emt 0:00:16]} Bc5 {[%emt 0:00:13]} 17. Bf4 {[%emt 0:00:34]} Bxd4 {[%emt 0:00:32]} 18. Qe2 {[%emt 0:00:16]} Ne7 {[%emt 0:00:24]} 19. Bg3 {[%emt 0:00:10]} Qh5 {[%emt 0:00:10]} 20. Rad1 {[%emt 0:00:30]} Nf5 {[%emt 0:00:10]} 21. Qxg4 {[%emt 0:00:26]} Qxg4 {[%emt 0:00:14]} 22. Nxg4 {[%emt 0:00:12]} Nxg3 {[%emt 0:00:09]} 23. Nxg3 {[%emt 0:00:25]} Bxg4 {[%emt 0:00:09]} 24. Rd2 {[%emt 0:00:16]} c5 {[%emt 0:00:24]} 25. Re4 {[%emt 0:00:10]} Be6 {[%emt 0:00:10]} 26. b4 {[%emt 0:00:16]} Rhg8 {[%emt 0:00:11]} 27. bxc5 {[%emt 0:00:10]} Bxc5 {[%emt 0:00:10]} 28. Kf1 {[%emt 0:00:10]} Rxd2 {[%emt 0:00:10]} 0-1

[Event "EUCC Open Blitz 2024"]
[Site "Miskolc"]
[Date "2024.07.13"]
[Round "3.1"]
[White "Manafov, Vugar"]
[Black "Isik, Alparslan"]
[Result "1-0"]
[ECO "A05"]
[WhiteElo "2430"]
[BlackElo "2469"]
[PlyCount "65"]
[EventDate "2024.07.08"]
[EventType "team-tourn"]
[EventCountry "HUN"]
[TimeControl "1500+10"]

1. Nf3 {[%emt 0:22:19]} Nf6 {[%emt 0:22:17]} 2. g3 {[%emt 0:00:09]} g6 {[%emt 0:00:11]} 3. Bg2 {[%emt 0:00:08]} Bg7 {[%emt 0:00:08]} 4. d4 {[%emt 0:00:09]} d5 {[%emt 0:00:09]} 5. c4 {[%emt 0:00:09]} c6 {[%emt 0:00:09]} 6. Qb3 {[%emt 0:00:08]} O-O {[%emt 0:00:11]} 7. O-O {[%emt 0:00:11]} Qb6 {[%emt 0:00:09]} 8. Nc3 {[%emt 0:00:12]} dxc4 {[%emt 0:00:31]} 9. Qxc4 {[%emt 0:00:09]} Be6 {[%emt 0:00:23]} 10. Qa4 {[%emt 0:00:09]} Na6 {[%emt 0:00:22]} 11. Rd1 {[%emt 0:00:13]} Rfd8 {[%emt 0:00:11]} 12. Qa3 {[%emt 0:00:40]} c5 {[%emt 0:00:15]} 13. Be3 {[%emt 0:00:21]} Qb4 {[%emt 0:00:31]} 14. Qxb4 {[%emt 0:00:23]} Nxb4 {[%emt 0:00:13]} 15. Ng5 {[%emt 0:01:08]} Bd5 {[%emt 0:00:14]} 16. dxc5 {[%emt 0:00:18]} h6 {[%emt 0:01:04]} 17. Nxd5 {[%emt 0:00:51]} Nfxd5 {[%emt 0:00:12]} 18. Bxd5 {[%emt 0:00:15]} Nxd5 {[%emt 0:00:11]} 19. Ne4 {[%emt 0:00:13]} f5 {[%emt 0:00:28]} 20. Nc3 {[%emt 0:00:09]} Bxc3 {[%emt 0:00:28]} 21. bxc3 {[%emt 0:00:09]} Nxe3 {[%emt 0:00:11]} 22. fxe3 {[%emt 0:00:09]} Rac8 {[%emt 0:00:10]} 23. Rxd8+ {[%emt 0:00:11]} Rxd8 {[%emt 0:00:09]} 24. Rb1 {[%emt 0:00:09]} Rd7 {[%emt 0:00:09]} 25. Kf2 {[%emt 0:00:12]} Kf7 {[%emt 0:00:09]} 26. e4 {[%emt 0:00:09]} e5 {[%emt 0:00:14]} 27. Ke3 {[%emt 0:00:12]} Ke6 {[%emt 0:00:08]} 28. Rb5 {[%emt 0:00:12]} Rc7 {[%emt 0:00:14]} 29. Kd3 {[%emt 0:00:17]} Rd7+ {[%emt 0:00:10]} 30. Ke3 {[%emt 0:00:11]} Rc7 {[%emt 0:00:11]} 31. a3 {[%emt 0:00:10]} h5 {[%emt 0:00:12]} 32. h4 {[%emt 0:00:10]} Rf7 {[%emt 0:00:09]} 33. Ra5 {[%emt 0:00:09]} 1-0

[Event "EUCC Open Blitz 2024"]
[Site "Miskolc"]
[Date "2024.07.13"]
[Round "3.2"]
[White "Kamer, Kayra"]
[Black "Atakishiyev, Elmar"]
[Result "0-1"]
[ECO "A15"]
[WhiteElo "2316"]
[BlackElo "2356"]
[PlyCount "80"]
[EventDate "2024.07.08"]
[EventType "team-tourn"]
[EventCountry "HUN"]
[TimeControl "1500+10"]

1. c4 {[%emt 0:22:16]} Nf6 {[%emt 0:22:17]} 2. a3 {[%emt 0:00:11]} g6 {[%emt 0:00:10]} 3. b4 {[%emt 0:00:09]} Bg7 {[%emt 0:00:09]} 4. Bb2 {[%emt 0:00:09]} O-O {[%emt 0:00:09]} 5. e3 {[%emt 0:00:19]} c6 {[%emt 0:00:14]} 6. Nf3 {[%emt 0:00:17]} d5 {[%emt 0:00:09]} 7. Be2 {[%emt 0:00:09]} Bg4 {[%emt 0:00:11]} 8. cxd5 {[%emt 0:00:31]} cxd5 {[%emt 0:00:10]} 9. O-O {[%emt 0:00:10]} Nbd7 {[%emt 0:00:10]} 10. Ne5 {[%emt 0:00:25]} Bxe2 {[%emt 0:00:43]} 11. Qxe2 {[%emt 0:00:09]} Ne4 {[%emt 0:00:09]} 12. f4 {[%emt 0:00:11]} Rc8 {[%emt 0:00:20]} 13. d3 {[%emt 0:00:18]} Nd6 {[%emt 0:00:13]} 14. Nxd7 {[%emt 0:00:13]} Bxb2 {[%emt 0:00:19]} 15. Qxb2 {[%emt 0:00:14]} Qxd7 {[%emt 0:00:08]} 16. Nd2 {[%emt 0:00:30]} Nf5 {[%emt 0:00:09]} 17. Rfe1 {[%emt 0:00:28]} Rc7 {[%emt 0:00:22]} 18. Nb3 {[%emt 0:00:09]} Rfc8 {[%emt 0:00:16]} 19. Nc5 {[%emt 0:00:33]} Qd6 {[%emt 0:00:33]} 20. e4 {[%emt 0:00:14]} dxe4 {[%emt 0:00:09]} 21. dxe4 {[%emt 0:00:09]} Qd4+ {[%emt 0:00:11]} 22. Qf2 {[%emt 0:00:18]} Qxf2+ {[%emt 0:00:10]} 23. Kxf2 {[%emt 0:00:09]} Nd6 {[%emt 0:00:16]} 24. e5 {[%emt 0:00:17]} Nb5 {[%emt 0:00:18]} 25. a4 Nd4 26. Rad1 {[%emt 0:00:21]} Nc2 {[%emt 0:00:31]} 27. Re4 {[%emt 0:00:14]} b6 {[%emt 0:00:16]} 28. Na6 {[%emt 0:00:23]} Rc4 {[%emt 0:00:26]} 29. Rxc4 {[%emt 0:00:12]} Rxc4 {[%emt 0:00:08]} 30. Rd7 {[%emt 0:00:17]} Nxb4 {[%emt 0:00:11]} 31. Nxb4 {[%emt 0:00:12]} Rxf4+ {[%emt 0:00:08]} 32. Ke3 {[%emt 0:00:10]} Rxb4 {[%emt 0:00:09]} 33. Rxa7 {[%emt 0:00:09]} e6 {[%emt 0:00:14]} 34. h3 {[%emt 0:00:15]} Kg7 {[%emt 0:00:10]} 35. Kd3 {[%emt 0:00:12]} g5 {[%emt 0:00:09]} 36. Ke3 {[%emt 0:00:09]} Kg6 {[%emt 0:00:09]} 37. g4 {[%emt 0:00:11]} Rb3+ {[%emt 0:00:10]} 38. Ke4 {[%emt 0:00:09]} Rxh3 {[%emt 0:00:10]} 39. Ra8 {[%emt 0:00:13]} Rg3 {[%emt 0:00:15]} 40. Rg8+ {[%emt 0:00:11]} Kh6 {[%emt 0:00:09]} 0-1

[Event "EUCC Open Blitz 2024"]
[Site "Miskolc"]
[Date "2024.07.13"]
[Round "3.3"]
[White "Vardanyan, Aras"]
[Black "Kruckenhauser, Arthur"]
[Result "1-0"]
[ECO "A04"]
[WhiteElo "2312"]
[BlackElo "2340"]
[PlyCount "77"]
[EventDate "2024.07.08"]
[EventType "team-tourn"]
[EventCountry "HUN"]
[TimeControl "1500+10"]

1. Nf3 {[%emt 0:22:18]} c5 {[%emt 0:22:16]} 2. g3 {[%emt 0:00:09]} Nc6 {[%emt 0:00:09]} 3. Bg2 {[%emt 0:00:09]} g6 {[%emt 0:00:09]} 4. O-O {[%emt 0:00:10]} Bg7 {[%emt 0:00:09]} 5. c4 {[%emt 0:00:09]} e5 {[%emt 0:00:09]} 6. Nc3 {[%emt 0:00:09]} Nge7 {[%emt 0:00:10]} 7. d3 {[%emt 0:00:10]} d6 {[%emt 0:00:09]} 8. a3 {[%emt 0:00:10]} a5 {[%emt 0:00:17]} 9. Bg5 {[%emt 0:00:14]} f6 {[%emt 0:00:09]} 10. Bd2 {[%emt 0:00:09]} Be6 {[%emt 0:00:12]} 11. Rb1 {[%emt 0:00:23]} O-O {[%emt 0:00:10]} 12. Qc1 {[%emt 0:00:27]} Rc8 {[%emt 0:00:24]} 13. Na4 {[%emt 0:00:18]} Bd7 {[%emt 0:00:28]} 14. Nc3 {[%emt 0:00:21]} Be6 {[%emt 0:00:09]} 15. Na4 {[%emt 0:00:09]} Bd7 {[%emt 0:00:22]} 16. b3 {[%emt 0:00:09]} f5 {[%emt 0:00:23]} 17. Bg5 {[%emt 0:00:12]} Bf6 {[%emt 0:00:10]} 18. Bxf6 {[%emt 0:00:17]} Rxf6 {[%emt 0:00:09]} 19. Ne1 {[%emt 0:00:11]} Nd4 {[%emt 0:00:17]} 20. Qd1 {[%emt 0:00:10]} b5 {[%emt 0:00:22]} 21. cxb5 {[%emt 0:00:12]} Nxb5 {[%emt 0:00:10]} 22. Nc2 {[%emt 0:00:14]} Be6 {[%emt 0:00:13]} 23. Qd2 {[%emt 0:00:16]} d5 {[%emt 0:00:10]} 24. b4 {[%emt 0:00:13]} axb4 {[%emt 0:00:32]} 25. axb4 {[%emt 0:00:09]} c4 {[%emt 0:00:09]} 26. Nc5 {[%emt 0:00:09]} c3 {[%emt 0:00:15]} 27. Qg5 {[%emt 0:00:09]} Kg7 {[%emt 0:00:15]} 28. Ra1 {[%emt 0:00:16]} h6 {[%emt 0:00:14]} 29. Qe3 {[%emt 0:00:11]} d4 {[%emt 0:00:12]} 30. Qxe5 {[%emt 0:00:12]} Bf7 {[%emt 0:00:35]} 31. Ra6 {[%emt 0:00:14]} Nd5 {[%emt 0:00:19]} 32. Bxd5 {[%emt 0:00:14]} Bxd5 {[%emt 0:00:10]} 33. Rxf6 {[%emt 0:00:10]} Qxf6 {[%emt 0:00:14]} 34. Qxd5 {[%emt 0:00:09]} Kh8 {[%emt 0:00:17]} 35. Ra1 {[%emt 0:00:13]} Re8 {[%emt 0:00:12]} 36. Ra8 {[%emt 0:00:15]} Qf8 {[%emt 0:00:15]} 37. Ne6 {[%emt 0:00:16]} Qg8 {[%emt 0:00:13]} 38. Qe5+ {[%emt 0:00:11]} Kh7 {[%emt 0:00:09]} 39. Rxe8 1-0

[Event "EUCC Open Blitz 2024"]
[Site "Miskolc"]
[Date "2024.07.13"]
[Round "3.4"]
[White "Leisch, Lukas"]
[Black "Stauskas, Lukas"]
[Result "1-0"]
[ECO "D01"]
[WhiteElo "2394"]
[BlackElo "2362"]
[PlyCount "75"]
[EventDate "2024.07.08"]
[EventType "team-tourn"]
[EventCountry "HUN"]
[TimeControl "1500+10"]

1. d4 {[%emt 0:22:17]} Nf6 {[%emt 0:22:17]} 2. Nc3 {[%emt 0:00:09]} d5 {[%emt 0:00:09]} 3. Bf4 {[%emt 0:00:09]} e6 {[%emt 0:00:09]} 4. Nb5 {[%emt 0:00:09]} Na6 {[%emt 0:00:09]} 5. e3 {[%emt 0:00:09]} Be7 {[%emt 0:00:09]} 6. Nf3 {[%emt 0:00:11]} O-O {[%emt 0:00:10]} 7. h4 {[%emt 0:00:09]} c6 {[%emt 0:00:15]} 8. Nc3 {[%emt 0:00:09]} c5 {[%emt 0:00:09]} 9. h5 {[%emt 0:00:33]} Bd7 {[%emt 0:00:14]} 10. h6 {[%emt 0:00:14]} g6 {[%emt 0:00:09]} 11. Ne5 {[%emt 0:00:20]} Be8 {[%emt 0:00:13]} 12. a3 {[%emt 0:00:26]} Nb8 {[%emt 0:00:18]} 13. Qf3 {[%emt 0:00:13]} Nc6 {[%emt 0:00:19]} 14. Nxc6 {[%emt 0:00:13]} bxc6 {[%emt 0:00:20]} 15. Be5 {[%emt 0:00:12]} cxd4 {[%emt 0:00:25]} 16. exd4 {[%emt 0:00:10]} Nd7 {[%emt 0:00:19]} 17. Bg7 {[%emt 0:00:12]} Qb6 {[%emt 0:00:10]} 18. Nd1 {[%emt 0:00:20]} c5 {[%emt 0:00:16]} 19. dxc5 {[%emt 0:00:17]} Nxc5 {[%emt 0:00:13]} 20. Be2 {[%emt 0:00:20]} Ne4 {[%emt 0:00:13]} 21. O-O {[%emt 0:00:15]} Nd2 {[%emt 0:00:15]} 22. Qc3 {[%emt 0:00:17]} Nxf1 {[%emt 0:00:17]} 23. Bxf1 {[%emt 0:00:10]} Bb5 {[%emt 0:00:17]} 24. Bd4 {[%emt 0:00:34]} Qc6 {[%emt 0:00:25]} 25. Bxb5 {[%emt 0:00:12]} Qxb5 {[%emt 0:00:09]} 26. Bc5 {[%emt 0:00:13]} f6 {[%emt 0:00:53]} 27. Bxe7 {[%emt 0:00:09]} Rf7 {[%emt 0:00:08]} 28. Bxf6 {[%emt 0:00:13]} Raf8 {[%emt 0:00:20]} 29. Bg7 {[%emt 0:00:12]} Re8 {[%emt 0:00:09]} 30. Ne3 {[%emt 0:00:12]} Qe2 {[%emt 0:00:13]} 31. Rf1 {[%emt 0:00:14]} Qh5 {[%emt 0:00:15]} 32. Qe5 {[%emt 0:00:16]} Qxe5 {[%emt 0:00:29]} 33. Bxe5 {[%emt 0:00:10]} Rb7 {[%emt 0:00:09]} 34. Ng4 {[%emt 0:00:11]} Kf7 {[%emt 0:00:10]} 35. Nf6 {[%emt 0:00:12]} Rc8 {[%emt 0:00:10]} 36. Nxh7 {[%emt 0:00:12]} Rxc2 {[%emt 0:00:12]} 37. Ng5+ {[%emt 0:00:09]} Kg8 {[%emt 0:00:09]} 38. h7+ {[%emt 0:00:11]} 1-0